bitfinex/quotes_ETHUSD_20250702
["timestamp","ask_amount","ask_price","bid_price","bid_amount"]
[1751417271968,22.11746609,2405.7,2405.6,0.2215412]
[1751417273177,21.79916048,2405.7,2405.6,0.2215412]
[1751417274071,29.71916048,2405.7,2405.6,0.2215412]
[1751417275444,60.58749732,2405.7,2405.6,0.2215412]
[1751417275687,64.96049732,2405.7,2405.6,0.15017684]
[1751417276069,50.09026707,2405.6,2405.5,0.01]
[1751417276388,10.55,2405.4,2404.6,0.01]
[1751417276592,10.0,2405.1,2404.6,0.01]
[1751417276792,18.73181453,2405.0,2404.6,0.01]
[1751417276953,17.7393,2405.0,2404.6,0.01]
[1751417277885,0.99154301,2404.9,2404.6,0.01]
[1751417278090,0.7525,2404.7,2404.6,0.01]
[1751417278260,6.892,2404.7,2404.6,0.01]
[1751417278558,8.63604301,2404.7,2404.6,0.01]
[1751417279351,1.74404301,2404.7,2404.6,0.01]
[1751417279559,9.7915,2404.7,2404.6,0.01]
[1751417279878,10.78404301,2404.7,2404.6,0.01]
[1751417280478,9.7925,2404.7,2404.6,0.01]
[1751417280869,10.78200852,2404.7,2404.6,0.01]
[1751417281048,10.02950852,2404.7,2404.6,0.01]
[1751417281555,9.04,2404.7,2404.6,0.01]
[1751417282584,19.8398,2404.7,2404.6,0.01]
[1751417282978,20.82801739,2404.7,2404.6,0.01]
[1751417284170,20.82501739,2404.7,2404.6,0.01]
[1751417284498,24.58077655,2404.7,2404.6,0.01]
[1751417285004,24.58277655,2404.7,2404.6,0.01]
[1751417285193,23.59455916,2404.7,2404.6,0.01]
[1751417286690,16.70155916,2404.7,2404.6,0.01]
[1751417286880,13.59855916,2404.7,2404.6,0.01]
[1751417287458,4.55555916,2404.7,2404.6,0.01]
[1751417287660,9.8428,2404.7,2404.6,0.01]
[1751417288486,9.8398,2404.7,2404.6,0.01]
[1751417290484,7.92,2404.8,2404.6,0.01]
[1751417290686,9.036,2404.7,2404.6,0.01]
[1751417291071,2.147,2404.7,2404.6,0.01]
[1751417291274,10.12507,2404.7,2404.6,0.01]
[1751417292107,10.12607,2404.7,2404.6,0.01]
[1751417295747,1.08907,2404.7,2404.6,0.01]
[1751417295905,9.03,2404.7,2404.6,0.01]
[1751417296607,9.029,2404.7,2404.6,0.01]
[1751417297505,9.03,2404.7,2404.6,0.01]
[1751417297712,9.789,2404.7,2404.6,0.01]
[1751417297931,19.34937362,2404.7,2404.6,0.01]
[1751417298107,22.73765716,2404.7,2404.6,0.01]
[1751417298308,30.65765716,2404.7,2404.6,0.01]
[1751417298945,30.05388646,2404.7,2404.6,0.01]
[1751417299250,31.04191867,2404.7,2404.6,0.01]
[1751417302952,30.0,2404.6,2403.6,0.01]
[1751417303114,9.56037362,2403.7,2403.6,0.01]
[1751417303319,29.101,2403.7,2403.6,0.01]
[1751417303514,20.0,2403.7,2403.6,0.01]
[1751417303743,29.101,2403.7,2403.6,0.01]
[1751417304046,10.0,2403.7,2403.6,0.01]
[1751417304348,19.102,2403.7,2403.6,0.01]
[1751417304546,21.11126923,2403.7,2403.6,0.01]
[1751417304744,21.90596923,2403.7,2403.6,0.01]
[1751417305047,24.13700496,2403.7,2403.6,0.01]
[1751417305449,22.89619221,2403.7,2403.6,0.01]
[1751417305831,13.78719221,2403.7,2403.6,0.01]
[1751417306031,22.10849221,2403.7,2403.6,0.01]
[1751417307027,20.09922298,2403.7,2403.6,0.01]
[1751417307547,21.34003573,2403.7,2403.6,0.01]
[1751417308452,22.11983573,2403.7,2403.6,0.01]
[1751417308830,21.34103573,2403.7,2403.6,0.01]
[1751417309158,20.09922298,2403.7,2403.6,0.01]
[1751417309356,10.99022298,2403.7,2403.6,0.01]
[1751417309562,20.09822298,2403.7,2403.6,0.01]
[1751417309758,10.99022298,2403.7,2403.6,0.01]
[1751417309927,20.10022298,2403.7,2403.6,0.82]
[1751417310128,20.10022298,2403.7,2403.6,0.01]
[1751417310732,10.99022298,2403.7,2403.6,0.01]
[1751417311065,20.10222298,2403.7,2403.6,0.01]
[1751417312034,20.09922298,2403.7,2403.6,0.7935]
[1751417312669,13.12922298,2403.7,2403.6,0.7935]
[1751417312866,20.10022298,2403.7,2403.6,0.7935]
[1751417314964,0.99022298,2403.7,2403.6,0.7935]
[1751417315143,2.139,2403.7,2403.6,1.3435]
[1751417315548,9.105,2403.7,2403.6,1.3435]
[1751417317434,2.139,2403.7,2403.6,1.3435]
[1751417317635,2.139,2403.7,2403.6,1.5515]
[1751417317832,9.102,2403.7,2403.6,1.5515]
[1751417319671,10.2102,2404.1,2403.7,0.55]
[1751417319966,2.138,2403.8,2403.7,1.3578]
[1751417320271,10.003,2404.1,2403.9,0.55]
[1751417320483,9.096,2404.0,2403.9,0.55]
[1751417320651,9.094,2404.0,2403.9,0.55]
[1751417320846,9.094,2404.0,2403.8,0.55]
[1751417321086,9.094,2404.0,2403.9,0.986]
[1751417321292,9.094,2404.0,2403.9,1.34898174]
[1751417321781,10.003,2404.1,2404.0,0.7908]
[1751417321982,0.2072,2404.4,2404.1,1.3408]
[1751417322150,1.19627578,2404.7,2404.4,0.7908]
[1751417322348,9.092,2404.6,2404.4,0.7908]
[1751417322695,6.953,2404.5,2404.4,1.3408]
[1751417323179,6.953,2404.5,2404.4,0.7908]
[1751417325114,0.2072,2404.6,2404.4,0.7908]
[1751417325248,9.118,2404.5,2404.4,1.3408]
[1751417326971,9.113,2404.5,2404.4,1.3408]
[1751417328174,0.2072,2404.6,2404.5,0.55]
[1751417328503,9.113,2404.6,2404.5,1.3065]
[1751417329131,9.113,2404.6,2404.4,0.55]
[1751417329666,9.113,2404.6,2404.3,0.2072]
[1751417329873,0.2072,2404.3,2404.0,0.7565]
[1751417330072,6.946,2404.2,2403.9,0.2072]
[1751417330511,6.946,2404.2,2403.8,0.7565]
[1751417330712,0.2072,2404.1,2403.8,0.7565]
[1751417330885,2.17,2404.0,2403.8,0.7565]
[1751417331081,6.954,2403.9,2403.8,0.7565]
[1751417331406,6.954,2403.9,2403.8,1.3065]
[1751417337445,6.954,2403.9,2403.6,0.7638]
[1751417343522,0.7765,2404.4,2403.8,0.55]
[1751417343825,0.7765,2404.4,2403.9,10.793]
[1751417344157,9.101,2404.3,2403.9,10.793]
[1751417345120,0.7765,2404.4,2403.9,10.0]
[1751417345449,9.098,2404.3,2403.9,10.0]
[1751417345656,10.08545,2404.3,2403.9,10.0]
[1751417347453,0.2072,2404.0,2403.9,10.0]
[1751417349164,9.098,2404.3,2403.9,10.55]
[1751417349165,2.17,2404.3,2403.9,10.55]
[1751417349355,6.922,2404.2,2404.1,0.8312]
[1751417349552,0.2072,2404.3,2404.1,0.8312]
[1751417349751,2.17,2404.2,2404.1,12.54004]
[1751417350154,9.089,2404.2,2404.1,12.54004]
[1751417351889,9.089,2404.2,2403.9,0.769]
[1751417352098,9.2962,2404.2,2403.9,0.769]
[1751417352279,9.089,2404.2,2403.6,0.01]
[1751417352482,0.2072,2404.0,2403.7,0.55]
[1751417354180,9.089,2403.9,2403.6,0.01]
[1751417354347,9.089,2403.8,2403.7,0.55]
[1751417356795,9.089,2403.8,2403.6,0.01]
[1751417357012,9.297,2403.8,2403.6,0.01]
[1751417360093,0.7892,2404.4,2403.8,0.55]
[1751417360259,0.2072,2404.1,2403.8,0.55]
[1751417361286,0.755,2404.0,2403.7,0.55]
[1751417361564,0.755,2404.0,2403.6,0.56]
[1751417361784,0.208,2403.9,2403.6,0.56]
[1751417362097,0.208,2403.9,2403.6,0.01]
[1751417362297,0.208,2403.8,2403.6,0.01]
[1751417362490,2.153,2403.7,2403.6,0.01]
[1751417365211,2.3891,2403.7,2403.6,0.01]
[1751417365611,3.185,2403.7,2403.6,0.01]
[1751417367408,10.091,2403.7,2403.6,0.01]
[1751417370732,1.032,2403.7,2403.6,0.01]
[1751417370920,10.085,2403.7,2403.6,0.01]
[1751417373526,18.005,2403.7,2403.6,0.01]
[1751417373849,10.0,2403.4,2402.0,0.8242]
[1751417374050,0.8306,2403.2,2402.0,0.8242]
[1751417374223,0.8306,2403.0,2402.0,0.8242]
[1751417374421,2.154,2403.1,2402.0,0.8242]
[1751417374422,7.7506,2402.9,2402.0,0.8242]
[1751417374621,0.77506,2402.8,2402.0,0.8242]
[1751417374824,10.003,2402.7,2402.0,0.8242]
[1751417375036,19.076,2402.7,2402.0,0.8242]
[1751417375866,0.8074,2402.6,2402.0,0.8242]
[1751417376823,0.8074,2402.6,2402.0,0.8342]
[1751417377024,9.073,2402.5,2402.0,0.8342]
[1751417377454,10.003,2402.7,2402.0,0.8342]
[1751417377656,2.154,2402.6,2402.4,0.7537]
[1751417377840,10.003,2402.7,2402.5,0.55]
[1751417378134,6.92,2402.6,2402.5,0.55]
[1751417378655,12.157,2402.7,2402.5,0.55]
[1751417378886,12.157,2402.7,2402.6,1.3243]
[1751417379161,19.075,2402.7,2402.6,2.45673]
[1751417379761,16.921,2402.7,2402.6,2.45673]
[1751417380138,10.003,2402.7,2402.6,2.45673]
[1751417380336,16.92,2402.7,2402.6,2.45673]
[1751417380958,16.918,2402.7,2402.6,1.3243]
[1751417384558,10.003,2402.7,2402.6,1.3243]
[1751417384762,19.069,2402.7,2402.6,1.3243]
[1751417385062,10.003,2402.7,2402.6,1.3243]
[1751417385240,12.149,2402.7,2402.6,1.3243]
[1751417385442,19.057,2402.7,2402.6,13.62307026]
[1751417386152,0.208,2403.2,2402.8,0.55]
[1751417386367,9.054,2403.1,2402.8,0.55]
[1751417386567,9.053,2403.0,2402.8,0.758]
[1751417386871,6.907,2402.9,2402.8,0.758]
[1751417387071,6.907,2402.9,2402.8,1.04287703]
[1751417387275,0.208,2403.2,2402.8,1.04287703]
[1751417387484,2.146,2403.1,2403.0,0.55]
[1751417387851,0.208,2403.6,2403.2,1.3771]
[1751417388047,10.8369,2404.0,2403.4,0.55]
[1751417388048,9.052,2403.5,2403.4,0.55]
[1751417391681,2.146,2403.5,2403.4,0.55]
[1751417391877,0.208,2403.7,2403.4,0.55]
[1751417392075,10.005,2404.0,2403.6,0.55]
[1751417392279,2.146,2403.7,2403.6,0.758]
[1751417393384,9.045,2403.7,2403.6,0.758]
[1751417393884,9.044,2403.7,2403.6,0.758]
[1751417394179,2.146,2403.8,2403.6,0.758]
[1751417394372,6.897,2403.7,2403.6,0.758]
[1751417394572,6.897,2403.7,2403.6,0.55]
[1751417394786,6.897,2403.7,2403.6,0.758]
[1751417395888,2.146,2403.8,2403.6,0.758]
[1751417396181,6.892,2403.7,2403.6,0.758]
[1751417396888,2.146,2403.8,2403.7,1.3439]
[1751417397055,9.037,2403.8,2403.7,1.55409]
[1751417398688,10.005,2404.0,2403.7,1.55409]
[1751417398854,10.005,2404.0,2403.9,0.55]
[1751417399053,10.005,2404.0,2403.9,0.7572]
[1751417399054,16.893,2404.0,2403.9,0.7572]
[1751417399793,0.2072,2404.4,2404.1,0.55]
[1751417399965,2.146,2404.3,2404.1,0.75863]
[1751417400155,0.2272,2404.5,2404.1,0.75863]
[1751417400491,9.033,2404.4,2404.3,0.55]
[1751417401068,9.033,2404.4,2404.3,1.3286]
[1751417403192,0.02,2404.5,2404.3,1.3286]
[1751417403391,9.029,2404.4,2404.3,1.3286]
[1751417403688,2.145,2404.4,2404.3,11.3286]
[1751417403885,9.026,2404.4,2404.3,13.64786326]
[1751417404092,6.881,2404.4,2404.3,13.64786326]
[1751417404988,0.02,2404.5,2404.3,13.64786326]
[1751417405290,6.901,2404.5,2404.3,13.64786326]
[1751417405955,6.901,2404.5,2404.3,13.96065353]
[1751417406154,6.901,2404.5,2404.4,2.35440561]
[1751417406571,6.899,2404.5,2404.4,2.35440561]
[1751417407799,6.899,2404.5,2404.4,2.90440561]
[1751417407999,6.899,2404.5,2404.4,0.55]
[1751417410625,0.02,2404.5,2404.4,0.55]
[1751417410798,6.892,2404.5,2404.4,0.55]
[1751417411220,6.89,2404.5,2404.4,1.3721]
[1751417411513,6.89,2404.5,2404.4,2.48837026]
[1751417411913,6.891,2404.5,2404.4,2.48837026]
[1751417412094,0.02,2404.5,2404.4,2.48837026]
[1751417412286,6.891,2404.5,2404.4,2.48837026]
[1751417416438,6.891,2404.5,2403.4,9.521]
[1751417416439,7.6693,2404.5,2403.7,1.24820097]
[1751417416635,7.6693,2404.5,2403.7,11.24820097]
[1751417416938,7.6693,2404.5,2403.8,0.55]
[1751417420634,0.7878,2404.4,2403.8,0.55]
[1751417420948,6.885,2404.5,2404.2,10.55]
[1751417421157,6.865,2404.4,2404.3,12.56320321]
[1751417421910,7.6704,2404.4,2404.3,10.0]
[1751417422141,9.8114,2404.4,2404.3,10.0]
[1751417422512,0.02,2404.5,2404.4,1.3333]
[1751417422712,6.901,2405.2,2404.4,1.3333]
[1751417422930,6.901,2405.2,2404.4,11.3333]
[1751417423244,6.901,2405.2,2404.5,12.09153321]
[1751417424647,6.903,2405.1,2404.5,2.09153321]
[1751417424827,0.8115,2405.0,2404.3,0.55]
[1751417426413,0.8115,2405.0,2403.8,0.7945]
[1751417426414,0.8104,2404.9,2403.8,0.7945]
[1751417426621,0.8104,2404.7,2403.8,0.7945]
[1751417426832,0.8104,2404.7,2403.9,0.55]
[1751417428419,9.044,2404.6,2403.9,10.55]
[1751417428643,9.044,2404.6,2404.0,12.09265322]
[1751417429030,9.044,2404.6,2404.0,2.09265322]
[1751417429628,9.039,2404.6,2404.2,10.7705]
[1751417431324,2.123,2404.7,2404.3,0.55]
[1751417431524,2.123,2404.7,2404.2,10.7705]
[1751417431525,9.039,2404.7,2404.5,0.55]
[1751417431738,2.123,2404.7,2404.5,0.55]
[1751417433225,2.945,2404.7,2404.5,0.55]
[1751417433424,2.945,2404.7,2404.0,2.88415322]
[1751417433638,2.945,2404.7,2404.1,0.55]
[1751417434042,0.02,2404.6,2404.1,0.55]
[1751417435375,0.02,2404.6,2403.8,0.823]
[1751417435673,0.02,2404.6,2403.9,0.55]
[1751417436557,0.2072,2404.5,2404.1,0.55]
[1751417436756,0.8231,2404.4,2404.1,0.55]
[1751417438437,0.8231,2404.4,2404.0,0.2072]
[1751417441444,0.8231,2404.4,2403.8,0.55]
[1751417441638,0.2072,2404.3,2403.8,0.7572]
[1751417441852,6.909,2404.2,2403.8,0.7572]
[1751417444760,2.123,2404.1,2403.8,0.7572]
[1751417445357,2.123,2404.1,2403.8,0.7672]
[1751417448566,9.039,2404.2,2403.8,1.5841]
[1751417450062,9.8482,2404.2,2403.8,0.7672]
[1751417450256,9.8482,2404.2,2403.8,0.01]
[1751417450257,9.037,2404.2,2403.8,0.01]
[1751417450457,2.142,2404.2,2404.1,0.2072]
[1751417450657,0.02,2404.6,2404.2,0.55]
[1751417450880,2.162,2404.6,2404.5,0.7572]
[1751417451393,9.058,2404.6,2404.5,0.7572]
[1751417451686,2.162,2404.6,2404.5,0.7572]
[1751417451903,0.02,2404.6,2404.5,0.7572]
[1751417452390,6.915,2404.6,2404.5,0.7572]
[1751417452788,0.02,2404.6,2404.5,0.7572]
[1751417452955,6.914,2404.6,2404.5,0.7572]
[1751417453663,6.914,2404.6,2404.5,0.2072]
[1751417453869,6.914,2404.6,2404.4,0.2072]
[1751417457213,0.7568,2404.5,2403.7,0.7659]
[1751417457373,0.2072,2404.3,2403.9,0.2072]
[1751417458001,0.2072,2404.3,2404.0,0.55]
[1751417460899,6.886,2404.2,2404.0,0.55]
[1751417464281,0.2072,2404.3,2404.0,0.55]
[1751417464488,0.7568,2404.5,2404.2,0.55]
[1751417464690,6.881,2404.4,2404.2,0.55]
[1751417466901,6.881,2404.4,2404.1,0.2072]
[1751417467121,0.2072,2404.3,2403.8,0.01]
[1751417467332,0.2072,2404.3,2403.9,0.2072]
[1751417467513,0.7611,2404.2,2403.9,0.2072]
[1751417469205,0.2072,2404.3,2403.9,0.2072]
[1751417469706,0.2072,2404.3,2403.9,0.2172]
[1751417470092,0.8135,2404.2,2403.9,0.2172]
[1751417470300,0.2072,2404.0,2403.9,0.01]
[1751417470612,1.0207,2404.0,2403.9,0.01]
[1751417476716,3.1627,2404.0,2403.9,0.01]
[1751417476918,2.3492,2404.0,2403.9,0.01]
[1751417477123,2.142,2404.0,2403.9,0.01]
[1751417477430,6.881,2404.0,2403.9,0.01]
[1751417477633,2.133,2404.1,2404.0,0.7784]
[1751417477930,2.133,2404.1,2404.0,1.3284]
[1751417480549,0.02,2404.5,2404.0,1.3284]
[1751417480713,0.02,2404.5,2404.2,0.7642]
[1751417480914,0.02,2405.4,2404.7,0.55]
[1751417481114,0.02,2405.6,2405.1,0.55]
[1751417481335,0.02,2405.6,2405.3,0.55]
[1751417481707,6.916,2405.6,2405.3,0.55]
[1751417482039,0.02,2405.6,2405.4,1.3226]
[1751417487224,0.02,2405.6,2405.4,0.55]
[1751417488360,0.7794,2406.5,2405.5,0.55]
[1751417488659,2.132,2406.4,2405.7,10.55]
[1751417488817,2.132,2406.4,2405.9,0.55]
[1751417490950,0.2072,2406.3,2405.9,0.7572]
[1751417494748,0.2272,2406.3,2405.9,0.7572]
[1751417495149,6.884,2406.2,2406.1,0.7572]
[1751417495789,2.151,2406.3,2406.1,0.7572]
[1751417496050,6.884,2406.2,2406.1,0.7572]
[1751417497649,6.884,2406.2,2406.1,0.2072]
[1751417497851,6.884,2406.2,2405.9,0.7572]
[1751417498021,6.884,2406.2,2405.9,1.12016532]
[1751417498222,6.884,2406.2,2405.9,0.7572]
[1751417500733,0.8323,2406.1,2405.0,0.7971]
[1751417501423,0.8323,2406.1,2405.1,0.55]
[1751417503351,0.8323,2406.1,2405.0,0.7971]
[1751417504054,0.8323,2406.1,2405.1,0.55]
[1751417510331,0.7535,2405.9,2405.1,0.55]
[1751417510732,0.2072,2405.6,2405.2,0.2072]
[1751417510964,9.2292,2405.6,2405.2,0.2072]
[1751417520349,9.2292,2405.6,2405.3,0.55]
[1751417520553,9.2292,2405.6,2405.4,0.8007]
[1751417522084,2.3432,2405.6,2405.4,0.8007]
[1751417522391,2.136,2405.6,2405.4,1.0079]
[1751417525419,2.136,2405.6,2405.4,0.2072]
[1751417525897,2.136,2405.6,2405.2,0.8225]
[1751417525898,2.136,2405.6,2405.3,0.55]
[1751417527301,2.136,2405.6,2405.2,0.2072]
[1751417527475,2.9073,2405.6,2405.0,0.7551]
[1751417527676,2.9073,2405.6,2405.1,0.55]
[1751417527677,3.88463,2405.6,2405.1,0.55]
[1751417528077,3.88463,2405.6,2404.8,0.8057]
[1751417528278,3.88463,2405.6,2404.8,1.0129]
[1751417528700,3.88463,2405.6,2404.9,0.55]
[1751417529090,0.7713,2405.6,2404.9,0.55]
[1751417529292,8.997,2405.6,2405.2,1.0129]
[1751417529474,9.2042,2405.6,2405.2,1.0129]
[1751417529671,9.2082,2405.6,2405.2,1.0129]
[1751417531006,2.3632,2405.6,2405.2,1.0129]
[1751417531306,0.2272,2405.6,2405.3,0.55]
[1751417531494,9.2272,2405.6,2405.3,0.55]
[1751417532693,0.2272,2405.6,2405.3,0.55]
[1751417532908,9.2282,2405.6,2405.3,0.55]
[1751417539636,9.2282,2405.6,2405.2,0.2072]
[1751417539821,11.04955,2405.6,2404.9,0.9801]
[1751417540120,11.04955,2405.6,2404.9,0.2072]
[1751417540415,11.04955,2405.6,2404.7,0.8206]
[1751417540609,12.04387845,2405.6,2404.7,0.8206]
[1751417544443,11.04955,2405.6,2404.7,0.8206]
[1751417546605,2.04855,2405.6,2404.7,0.8206]
[1751417546806,10.0186,2405.6,2404.7,0.8206]
[1751417547001,11.01242191,2405.6,2404.7,0.8206]
[1751417555339,12.25381571,2405.6,2404.7,0.8206]
[1751417556337,11.01242191,2405.6,2404.7,0.8206]
[1751417557922,11.00442191,2405.6,2404.7,0.8206]
[1751417559142,12.89396692,2405.6,2404.7,0.8206]
[1751417563950,22.89396692,2405.6,2404.7,0.8206]
[1751417564154,24.13536072,2405.6,2404.7,0.8206]
[1751417564353,24.13536072,2405.6,2404.5,0.7886]
[1751417564354,35.19896692,2405.6,2404.5,0.7886]
[1751417564529,37.67376308,2405.6,2404.5,0.01]
[1751417565245,29.75376308,2405.6,2404.5,0.01]
[1751417570728,27.27896692,2405.6,2404.5,0.01]
[1751417571057,29.75376308,2405.6,2404.5,0.01]
[1751417571359,27.27896692,2405.6,2404.5,0.01]
[1751417571725,60.30376308,2405.6,2404.5,0.01]
[1751417572126,4.385,2405.4,2404.5,0.01]
[1751417572329,7.47173443,2404.7,2404.5,0.01]
[1751417572555,18.951,2404.6,2404.5,0.01]
[1751417573361,18.952,2404.6,2404.5,0.01]
[1751417574037,19.94337559,2404.6,2404.5,0.01]
[1751417576364,19.94237559,2404.6,2404.5,0.01]
[1751417576949,18.951,2404.6,2404.5,0.01]
[1751417580343,9.997,2404.6,2404.5,0.01]
[1751417580566,18.952,2404.6,2404.5,0.01]
[1751417581470,9.997,2404.6,2404.5,0.01]
[1751417581639,18.952,2404.6,2404.5,0.01]
[1751417581841,9.997,2404.6,2404.5,0.8401]
[1751417582043,16.841,2404.6,2404.5,11.3901]
[1751417582241,9.997,2404.6,2404.5,13.40127344]
[1751417582458,16.841,2404.6,2404.5,13.40127344]
[1751417590504,16.84,2404.6,2404.5,13.40127344]
[1751417593908,2.111,2404.8,2404.7,0.55]
[1751417594219,2.111,2404.8,2404.7,1.3291]
[1751417594220,8.953,2404.8,2404.7,1.3291]
[1751417594378,8.953,2404.8,2404.7,12.87132734]
[1751417594574,8.953,2404.8,2404.7,12.32132734]
[1751417594896,8.953,2404.8,2404.7,10.0]
[1751417595205,0.2072,2404.7,2404.5,0.01]
[1751417595404,6.842,2404.6,2404.5,0.01]
[1751417596726,7.6138,2404.6,2404.5,0.01]
[1751417596918,9.25124344,2404.6,2404.5,0.01]
[1751417599746,16.893361,2404.6,2404.5,0.01]
[1751417600834,18.13295332,2404.6,2404.5,0.01]
[1751417602114,28.13295332,2404.6,2404.5,0.01]
[1751417603838,26.893361,2404.6,2404.5,0.01]
[1751417604540,28.13263815,2404.6,2404.5,0.01]
[1751417604739,14.64100372,2404.6,2404.5,0.01]
[1751417604955,23.59500372,2404.6,2404.5,0.01]
[1751417605451,22.35572657,2404.6,2404.5,0.01]
[1751417605644,23.59500372,2404.6,2404.5,0.01]
[1751417605851,31.51500372,2404.6,2404.5,0.01]
[1751417607553,30.27572657,2404.6,2404.5,0.01]
[1751417607753,30.27672657,2404.6,2404.5,0.01]
[1751417607954,31.51533977,2404.6,2404.5,0.01]
[1751417611527,30.27672657,2404.6,2404.5,0.01]
[1751417615149,20.27672657,2404.6,2404.5,0.01]
[1751417615355,11.32172657,2404.6,2404.5,0.01]
[1751417615532,20.27672657,2404.6,2404.5,0.01]
[1751417615735,11.32172657,2404.6,2404.5,0.01]
[1751417615956,20.27672657,2404.6,2404.5,0.01]
[1751417618373,3.10348313,2404.6,2404.5,0.01]
[1751417618675,9.94748313,2404.6,2404.5,0.01]
[1751417623602,16.59711756,2404.6,2404.5,0.01]
[1751417624078,0.99248313,2404.6,2404.5,0.7809]
[1751417624286,3.10348313,2404.6,2404.5,0.7809]
[1751417624484,8.954,2404.6,2404.5,1.52395344]
[1751417624847,8.954,2404.6,2404.5,0.7809]
[1751417626163,2.111,2404.6,2404.5,0.7809]
[1751417626489,8.954,2404.6,2404.5,0.7809]
[1751417626691,2.3182,2404.6,2404.5,1.3309]
[1751417626891,9.1612,2404.6,2404.5,1.3309]
[1751417629190,0.99334124,2404.9,2404.6,1.3057]
[1751417629366,0.2072,2404.7,2404.6,1.3057]
[1751417629567,7.0502,2404.7,2404.6,1.3057]
[1751417630892,0.2072,2404.7,2404.6,1.3057]
[1751417631064,9.1592,2404.7,2404.6,1.3057]
[1751417632271,2.3172,2404.7,2404.6,1.3057]
[1751417632485,8.952,2404.7,2404.6,1.3057]
[1751417632792,8.952,2404.7,2404.6,2.43727]
[1751417632993,8.952,2404.7,2404.6,12.43727]
[1751417633562,9.1592,2404.7,2404.6,2.43727]
[1751417633762,9.1592,2404.7,2404.6,1.3057]
[1751417635091,9.1592,2404.7,2404.6,0.7557]
[1751417636882,0.2072,2404.7,2404.6,1.3057]
[1751417637069,8.952,2404.7,2404.6,11.3057]
[1751417637406,0.2072,2404.9,2404.6,10.55]
[1751417637568,8.952,2404.8,2404.7,12.53566344]
[1751417637767,2.11,2404.8,2404.7,12.53566344]
[1751417638068,8.951,2404.8,2404.7,12.53566344]
[1751417639711,2.11,2404.8,2404.7,12.53566344]
[1751417639907,8.951,2404.8,2404.7,12.53566344]
[1751417640903,2.11,2404.8,2404.7,12.53566344]
[1751417641700,6.841,2405.0,2404.9,1.3647]
[1751417642001,2.11,2405.1,2405.0,1.3304]
[1751417642168,8.951,2405.1,2405.0,1.3304]
[1751417642364,2.11,2405.1,2405.0,1.3304]
[1751417642600,8.951,2405.1,2405.0,1.3304]
[1751417643904,8.951,2405.1,2404.9,1.02852979]
[1751417644084,0.2072,2405.0,2404.9,0.55]
[1751417644772,6.84,2405.0,2404.7,1.3363]
[1751417644972,6.84,2405.0,2404.9,10.0]
[1751417645594,6.84,2405.0,2404.9,10.7826]
[1751417646807,6.84,2405.0,2404.9,1.3326]
[1751417647488,6.84,2405.0,2404.9,0.55]
[1751417648991,6.84,2405.0,2404.7,0.8241]
[1751417649186,0.2072,2404.9,2404.7,1.93921585]
[1751417650211,0.2072,2404.9,2404.5,0.7717]
[1751417650389,0.2072,2404.6,2404.5,0.7717]
[1751417650578,0.2072,2404.6,2404.5,1.3217]
[1751417650783,0.2072,2404.6,2404.5,0.01]
[1751417655996,2.3172,2404.6,2404.5,0.01]
[1751417658392,2.54892,2404.6,2404.5,0.01]
[1751417659842,3.33212,2404.6,2404.5,0.01]
[1751417659993,4.32556798,2404.6,2404.5,0.01]
[1751417660817,12.24556798,2404.6,2404.5,0.01]
[1751417662734,19.08456798,2404.6,2404.5,0.01]
[1751417664536,10.13556798,2404.6,2404.5,0.01]
[1751417664728,17.8594,2404.6,2404.5,0.01]
[1751417667838,10.2362,2404.6,2404.5,0.01]
[1751417668043,17.0762,2404.6,2404.5,0.01]
[1751417672069,17.8959,2404.6,2404.5,0.01]
[1751417672279,20.35045344,2404.6,2404.5,0.01]
[1751417674669,21.33983195,2404.6,2404.5,0.01]
[1751417675175,20.35045344,2404.6,2404.5,0.01]
[1751417675474,17.8959,2404.6,2404.5,0.01]
[1751417677166,18.88648765,2404.6,2404.5,0.01]
[1751417679501,28.88648765,2404.6,2404.5,0.01]
[1751417679788,30.12755433,2404.6,2404.5,0.01]
[1751417680346,28.88648765,2404.6,2404.5,0.01]
[1751417680583,34.55456747,2404.6,2404.5,0.01]
[1751417681881,32.89981189,2404.6,2404.5,0.01]
[1751417682392,29.36481189,2404.6,2404.5,0.01]
[1751417683384,31.01747957,2404.6,2404.5,0.01]
[1751417683751,29.36481189,2404.6,2404.5,0.01]
[1751417684082,10.0,2404.1,2403.9,0.01]
[1751417684382,35.28033819,2404.0,2403.9,0.01]
[1751417684581,35.96949536,2404.0,2403.9,0.01]
[1751417684753,20.76028765,2404.0,2403.9,0.01]
[1751417689315,45.96949536,2404.0,2403.9,0.01]
[1751417689471,79.29366243,2404.0,2403.9,0.01]